bitfinex/quotes_BTCUSD_20241205
["timestamp","ask_amount","ask_price","bid_price","bid_amount"]
[1733428780479,0.00017632,99120.0,99112.0,0.1]
[1733428780695,0.00017632,99120.0,99113.0,0.09967605]
[1733428780924,0.00017632,99120.0,99119.0,0.1]
[1733428781151,0.00017632,99120.0,99119.0,0.09967605]
[1733428782038,0.00917632,99120.0,99119.0,0.19967605]
[1733428782245,0.00017632,99120.0,99119.0,0.19967605]
[1733428782480,0.02342035,99120.0,99119.0,0.17697565]
[1733428782736,0.00917632,99120.0,99119.0,0.17697565]
[1733428782957,0.01417632,99120.0,99119.0,0.17797565]
[1733428783437,0.00917632,99120.0,99119.0,0.25697565]
[1733428783662,0.00917632,99120.0,99119.0,0.25797565]
[1733428783913,0.01417632,99120.0,99119.0,0.25797565]
[1733428784152,0.00517632,99120.0,99119.0,0.25797565]
[1733428784362,0.01417632,99120.0,99119.0,0.32837565]
[1733428784588,0.01417632,99120.0,99119.0,0.42837565]
[1733428785057,0.01417632,99120.0,99119.0,0.46507565]
[1733428785355,0.00017632,99120.0,99119.0,0.46507565]
[1733428785599,0.00617632,99120.0,99119.0,0.34307565]
[1733428785838,0.00217632,99120.0,99119.0,0.29467565]
[1733428786045,0.00217632,99120.0,99119.0,0.19467565]
[1733428786692,0.00217632,99120.0,99119.0,0.29467565]
[1733428786896,0.00217632,99120.0,99119.0,0.19467565]
[1733428787558,0.03215609,99120.0,99119.0,0.11467565]
[1733428787770,0.02830692,99120.0,99119.0,0.0377]
[1733428787975,0.02830692,99120.0,99085.0,0.1]
[1733428787976,0.03230692,99120.0,99084.0,0.1]
[1733428788192,0.15,99097.0,99085.0,0.09967605]
[1733428788404,0.02430692,99120.0,99101.0,0.1]
[1733428788615,0.03330692,99120.0,99102.0,0.09967605]
[1733428788823,0.03030692,99120.0,99102.0,0.09967605]
[1733428789312,0.03030692,99120.0,99104.0,0.1]
[1733428789313,0.03830692,99120.0,99104.0,0.1]
[1733428789524,0.15,99118.0,99105.0,0.09967605]
[1733428789962,0.01991067,99106.0,99105.0,0.09967605]
[1733428791205,0.02891067,99106.0,99105.0,0.09967605]
[1733428791411,0.01991067,99106.0,99105.0,0.09967605]
[1733428791855,0.02891067,99106.0,99105.0,0.09967605]
[1733428792072,0.03191067,99106.0,99105.0,0.19967605]
[1733428792295,0.012,99106.0,99105.0,0.29967605]
[1733428792523,0.003,99106.0,99105.0,0.29967605]
[1733428792727,0.00017632,99120.0,99115.0,0.1]
[1733428792990,0.00017632,99120.0,99116.0,0.09967605]
[1733428794051,0.00017632,99120.0,99111.0,0.1]
[1733428794052,0.02049431,99117.0,99111.0,0.1]
[1733428794263,0.02049431,99117.0,99105.0,0.1]
[1733428794264,0.02049431,99117.0,99116.0,0.1]
[1733428794510,0.02049431,99117.0,99116.0,0.19967605]
[1733428794943,0.02049431,99117.0,99116.0,0.09967605]
[1733428795206,0.17049431,99117.0,99116.0,0.19967605]
[1733428796050,0.17049431,99117.0,99116.0,0.09967605]
[1733428796272,0.15,99101.0,99031.0,0.1]
[1733428796485,0.35185,99083.0,99082.0,0.09967605]
[1733428797776,0.36055766,99083.0,99082.0,0.09967605]
[1733428797983,0.36055766,99083.0,99070.0,0.03424497]
[1733428797984,0.009,99083.0,99064.0,0.0783]
[1733428798194,0.009,99083.0,99077.0,0.00017632]
[1733428798404,0.009,99083.0,99078.0,0.09967605]
[1733428798405,0.15,99079.0,99078.0,0.09967605]
[1733428799069,0.16985651,99079.0,99078.0,0.09967605]
[1733428799513,0.0228606,99079.0,99078.0,0.09967605]
[1733428799724,0.15,99055.0,99054.0,0.1]
[1733428799936,0.15,99077.0,99054.0,0.19967605]
[1733428800171,0.15,99062.0,99055.0,0.09967605]
[1733428800413,0.351905,99056.0,99055.0,0.09886605]
[1733428800706,0.15,99056.0,99055.0,0.09886605]
[1733428801541,0.15,99061.0,99055.0,0.09886605]
[1733428801776,0.15,99059.0,99055.0,0.09886605]
[1733428801991,0.201891,99064.0,99055.0,0.09886605]
[1733428801992,0.004,99056.0,99055.0,0.09886605]
[1733428802443,0.351908,99055.0,99054.0,0.001]
[1733428802668,0.06575503,99072.0,99064.0,0.09369099]
[1733428802905,0.201887,99065.0,99064.0,0.09369099]
[1733428803152,0.201887,99065.0,99010.0,0.0791659]
[1733428803153,0.201956,99031.0,99030.0,0.9896872]
[1733428803633,0.201956,99031.0,99030.0,0.9798672]
[1733428803864,0.201926,99046.0,99030.0,0.9798672]
[1733428803865,0.02036849,99036.0,99030.0,0.9798672]
[1733428804088,0.42426349,99036.0,99030.0,1.07954325]
[1733428804316,0.42426349,99036.0,99030.0,0.9798672]
[1733428804610,0.00307374,99031.0,99030.0,0.98045527]
[1733428804847,0.01207374,99031.0,99030.0,0.94878024]
[1733428805082,0.00307374,99031.0,99030.0,0.94878024]
[1733428805309,0.00507374,99031.0,99030.0,0.8983082]
[1733428805533,0.00507374,99031.0,99030.0,0.85812008]
[1733428805740,0.25274979,99031.0,99030.0,0.77231131]
[1733428805955,0.28296677,99031.0,99030.0,0.70474245]
[1733428806169,0.15507374,99031.0,99030.0,0.70474245]
[1733428806377,0.14889674,99031.0,99030.0,0.8044185]
[1733428806598,0.14689674,99031.0,99030.0,0.8044185]
[1733428806842,0.01098458,99031.0,99030.0,0.70474245]
[1733428807060,0.01098458,99031.0,99030.0,0.8054185]
[1733428807271,0.01098458,99031.0,99030.0,0.93966347]
[1733428807484,0.01098458,99031.0,99030.0,1.06266347]
[1733428807904,0.00298458,99031.0,99030.0,0.70474245]
[1733428808129,0.00298458,99031.0,99030.0,0.5253626]
[1733428808368,0.351997,99011.0,98991.0,0.0459]
[1733428808587,0.15,99003.0,99000.0,4.99792024]
[1733428808815,0.202018,99001.0,99000.0,4.99792024]
[1733428809049,0.15,99003.0,99000.0,4.99792024]
[1733428809288,0.201975,99023.0,99004.0,0.1]
[1733428809508,0.02576838,99031.0,99015.0,0.03424497]
[1733428809731,0.0236925,99023.0,99016.0,0.09967605]
[1733428809950,0.15,99029.0,99016.0,0.09967605]
[1733428810177,0.15,99021.0,99016.0,0.09967605]
[1733428810393,0.02042641,99018.0,99016.0,0.09967605]
[1733428810612,0.201985,99017.0,99016.0,0.09967605]
[1733428810830,0.02042641,99018.0,99005.0,0.0789]
[1733428811051,0.15,99006.0,99000.0,4.99792024]
[1733428811259,0.202018,99001.0,99000.0,4.99792024]
[1733428811472,0.352018,99001.0,99000.0,4.99792024]
[1733428812095,0.352018,99001.0,99000.0,4.94742024]
[1733428812332,0.352018,99001.0,99000.0,4.94842024]
[1733428812760,0.352018,99001.0,99000.0,4.92794956]
[1733428812971,0.45169405,99001.0,99000.0,4.60476119]
[1733428813205,0.45169405,99001.0,99000.0,4.33194596]
[1733428813434,0.45169405,99001.0,99000.0,4.12994596]
[1733428813670,0.48127631,99001.0,99000.0,2.19639791]
[1733428813882,0.48127631,99001.0,99000.0,1.9804539]
[1733428814092,0.45769405,99001.0,99000.0,1.9804539]
[1733428814309,0.45769405,99001.0,99000.0,1.96548959]
[1733428814310,0.45169405,99001.0,99000.0,1.96548959]
[1733428814539,0.54044908,99001.0,99000.0,1.67420575]
[1733428814784,1.10798454,99001.0,99000.0,1.58222251]
[1733428814997,0.352058,98981.0,98950.0,0.0008659]
[1733428815211,0.47851187,98981.0,98980.0,0.00104246]
[1733428815426,0.56820236,98981.0,98980.0,0.00104246]
[1733428815645,0.5006061,98981.0,98980.0,0.00104246]
[1733428815873,0.56636113,98981.0,98980.0,0.00104246]
[1733428816160,0.47851187,98981.0,98980.0,0.00104246]
[1733428816385,0.56636597,98981.0,98980.0,0.00104246]
[1733428816810,0.58936597,98981.0,98980.0,4.6e-07]
[1733428817024,1.12396597,98981.0,98980.0,4.6e-07]
[1733428817461,1.06108908,98981.0,98980.0,4.6e-07]
[1733428817694,1.07008908,98981.0,98980.0,4.6e-07]
[1733428817908,0.53548908,98981.0,98980.0,4.6e-07]
[1733428818131,1.08712041,98981.0,98980.0,4.6e-07]
[1733428818345,1.09208908,98981.0,98980.0,4.6e-07]
[1733428818996,1.08408908,98981.0,98980.0,4.6e-07]
[1733428819200,1.79208908,98981.0,98980.0,4.6e-07]
[1733428819827,1.78308908,98981.0,98980.0,4.6e-07]
[1733428820046,3.29208908,98981.0,98980.0,4.6e-07]
[1733428820684,3.29308908,98981.0,98980.0,4.6e-07]
[1733428820895,3.30208908,98981.0,98980.0,4.6e-07]
[1733428821107,3.28408908,98981.0,98980.0,4.6e-07]
[1733428821319,1.55433405,98981.0,98980.0,4.6e-07]
[1733428821531,1.01073405,98981.0,98980.0,4.6e-07]
[1733428821744,1.55433405,98981.0,98980.0,4.6e-07]
[1733428821953,0.92008908,98981.0,98980.0,4.6e-07]
[1733428822179,0.85433405,98981.0,98980.0,4.6e-07]
[1733428822408,0.31073405,98981.0,98980.0,4.6e-07]
[1733428822613,0.31773405,98981.0,98980.0,4.6e-07]
[1733428822836,0.30873405,98981.0,98980.0,4.6e-07]
[1733428823293,0.31773405,98981.0,98980.0,4.6e-07]
[1733428823770,0.47673405,98981.0,98980.0,4.6e-07]
[1733428823986,0.202058,98981.0,98980.0,4.6e-07]
[1733428824418,0.31973405,98981.0,98980.0,4.6e-07]
[1733428824633,0.31073405,98981.0,98980.0,4.6e-07]
[1733428824854,0.30173405,98981.0,98980.0,4.6e-07]
[1733428825281,0.30873405,98981.0,98980.0,4.6e-07]
[1733428825711,0.45173405,98981.0,98980.0,4.6e-07]
[1733428825945,0.45173405,98981.0,98980.0,0.00086716]
[1733428825946,0.46693405,98981.0,98980.0,0.00086716]
[1733428826433,0.217258,98981.0,98980.0,0.00086716]
[1733428826902,0.016,98981.0,98980.0,0.00086716]
[1733428827132,0.018,98981.0,98980.0,0.00086716]
[1733428827351,0.202045,98988.0,98981.0,0.0822]
[1733428827598,0.0017334,98990.0,98989.0,0.03424497]
[1733428827815,0.201955,99032.0,99016.0,0.03424497]
[1733428828020,0.06575503,99055.0,99017.0,0.10984497]
[1733428828021,1.51578305,99048.0,99017.0,0.10984497]
[1733428828239,0.201958,99031.0,99017.0,0.10984497]
[1733428828464,1.51578305,99048.0,99017.0,0.10984497]
[1733428828685,0.01578305,99048.0,99017.0,0.10984497]
[1733428828883,0.201964,99028.0,99017.0,0.10984497]
[1733428829093,0.15,99027.0,99017.0,0.10984497]
[1733428829958,0.00017623,99028.0,99026.0,0.0494]
[1733428830175,0.00617623,99028.0,99026.0,0.0494]
[1733428830400,0.00017623,99028.0,99026.0,0.0494]
[1733428830639,0.06575503,99024.0,98984.0,0.0774]
[1733428830861,0.09967605,99023.0,98985.0,0.03424497]
[1733428831078,0.09967605,99023.0,98986.0,0.03424497]
[1733428831350,0.09967605,99023.0,98984.0,0.0774]
[1733428831351,0.12987723,99022.0,98998.0,0.03424497]
[1733428831579,0.12987723,99022.0,98991.0,0.1]
[1733428831580,0.15,98989.0,98986.0,0.03424497]
[1733428832010,0.15,98991.0,98986.0,0.03424497]
[1733428832011,0.15,98991.0,98990.0,0.03424497]
[1733428832220,0.035395,99030.0,99010.0,0.03424497]
[1733428832431,0.009,99028.0,99010.0,0.03424497]
[1733428832648,0.201996,99012.0,99010.0,0.03424497]
[1733428833078,0.0001762,99012.0,99010.0,0.03424497]
[1733428833295,0.0001762,99012.0,99011.0,0.28302102]
[1733428833509,0.50571363,99089.0,99034.0,0.1]
[1733428833720,0.0017342,99090.0,99035.0,0.1]
[1733428833721,0.040386,99040.0,99035.0,0.1]
[1733428833993,0.201873,99072.0,99034.0,0.1]
[1733428834203,0.01578125,99073.0,99034.0,0.1]
[1733428834204,0.040386,99063.0,99034.0,0.1]
[1733428834412,0.040386,99063.0,99035.0,0.1]
[1733428834413,0.201932,99043.0,99035.0,0.1]
[1733428834624,0.040386,99063.0,99035.0,0.1]
[1733428834625,0.15,99052.0,99035.0,0.1]
[1733428834843,0.040386,99063.0,99046.0,0.1]
[1733428835062,0.040386,99063.0,99058.0,0.1]
[1733428835328,0.50571363,99110.0,99083.0,0.1]
[1733428835329,0.00525195,99084.0,99083.0,0.1]
[1733428835544,0.040362,99107.0,99089.0,0.1]
[1733428835759,0.01577737,99110.0,99109.0,0.1]
[1733428835972,0.001731,99120.0,99114.0,0.1]
[1733428836242,0.001731,99120.0,99114.0,0.0772894]
[1733428836469,0.001731,99120.0,99103.0,0.0466]
[1733428836470,0.09967605,99119.0,99103.0,0.0466]
[1733428836685,0.201842,99088.0,99084.0,0.0779]
[1733428836901,0.201826,99095.0,99085.0,0.09967605]
[1733428837117,0.201801,99108.0,99098.0,0.0772894]
[1733428837331,0.040364,99107.0,99106.0,0.0772894]
[1733428837537,0.201777,99119.0,99106.0,0.0772894]
[1733428837756,0.001731,99120.0,99105.0,0.0772894]
[1733428837979,0.201801,99108.0,99098.0,0.0772894]
[1733428838199,0.201801,99108.0,99106.0,0.0772894]
[1733428838200,0.00058891,99108.0,99106.0,0.0772894]
[1733428838405,0.00058891,99108.0,99098.0,0.09967605]
[1733428838406,0.00258891,99108.0,99107.0,0.0772894]
[1733428838623,0.00258891,99108.0,99107.0,0.29692052]
[1733428838831,0.00058891,99108.0,99107.0,0.34552052]
[1733428839273,0.00258891,99108.0,99107.0,0.34552052]
[1733428839495,0.01158891,99108.0,99107.0,0.32556545]
[1733428839706,0.01158891,99108.0,99107.0,0.0486]
[1733428839920,0.00258891,99108.0,99097.0,0.0772894]
[1733428840166,0.00258891,99108.0,99099.0,0.0772894]
[1733428840403,0.00658891,99108.0,99105.0,0.1772894]
[1733428840618,0.00458891,99108.0,99107.0,0.0772894]
[1733428840839,0.00858891,99108.0,99091.0,0.0772894]
[1733428841059,0.15,99085.0,99066.0,0.0772894]
[1733428841283,0.15,99067.0,99066.0,0.1595894]
[1733428841514,0.15,99067.0,99066.0,0.0823]
[1733428842038,0.15,99067.0,99030.0,0.01969466]
[1733428842039,0.15,99050.0,99049.0,0.0772894]
[1733428842265,0.15,99048.0,99047.0,0.0772894]
[1733428842486,0.15,99048.0,99042.0,0.0823]
[1733428842487,0.15,99046.0,99042.0,0.0823]
[1733428842715,0.201884,99067.0,99020.0,0.0823]
[1733428842716,0.15,99041.0,99020.0,0.0823]
[1733428842927,0.50571363,99060.0,99020.0,0.0823]
[1733428842928,0.15,99022.0,99020.0,0.0823]
[1733428843566,0.00017646,99046.0,99028.0,0.0772894]
[1733428843987,0.00017646,99046.0,99038.0,0.0772894]
[1733428844192,0.00017646,99046.0,99035.0,0.0772894]
[1733428844401,0.15,99044.0,99031.0,0.0772894]
[1733428844606,0.15,99044.0,99020.0,0.0823]
[1733428844607,0.023,99042.0,99020.0,0.0823]
[1733428844818,0.09967605,99043.0,99020.0,0.0823]
[1733428844819,0.15,99029.0,99020.0,0.0823]
[1733428845242,0.201968,99026.0,99020.0,0.0823]
[1733428845451,0.15,99027.0,99000.0,0.0823]
[1733428845452,0.15,99004.0,99000.0,0.0823]
[1733428845663,0.202038,98991.0,98990.0,0.0008662]
[1733428845895,0.09967605,99003.0,98990.0,0.0008662]
[1733428846115,0.1499293,99004.0,98991.0,0.0772894]
[1733428846352,0.1499293,99004.0,99002.0,0.0772894]
[1733428846567,0.1499293,99004.0,98992.0,0.09967605]
[1733428846568,0.201994,99013.0,99003.0,0.0772894]
[1733428846847,0.201952,99033.0,99011.0,0.0772894]
[1733428846848,0.201982,99019.0,99011.0,0.0772894]
[1733428847080,0.201982,99019.0,99012.0,0.0772894]
[1733428847525,0.023,99049.0,99012.0,0.0772894]
[1733428847738,0.201958,99031.0,99008.0,0.0772894]
[1733428847952,0.15,99023.0,99012.0,0.0772894]
[1733428848183,0.023,99021.0,99002.0,0.0001762]
[1733428848393,0.15,99010.0,99004.0,0.0772894]
[1733428848616,0.15,99010.0,99009.0,0.1772894]
[1733428848824,0.15,99010.0,99009.0,0.0772894]
[1733428849026,0.15,99010.0,99008.0,0.0484]
[1733428849231,0.15,99010.0,99009.0,0.0772894]
[1733428849468,0.15,99022.0,99009.0,0.0772894]
[1733428849678,0.15,99020.0,99012.0,0.0772894]
[1733428849882,0.206981,99019.0,99012.0,0.0772894]
[1733428850102,0.15,99020.0,99012.0,0.0772894]
[1733428851174,0.0017324,99040.0,99021.0,0.183]
[1733428851384,0.0017324,99040.0,99039.0,0.1772894]
[1733428851588,0.00525488,99069.0,99051.0,0.1772894]
[1733428851810,0.00525488,99069.0,99046.0,0.0772894]
[1733428852014,0.50571363,99096.0,99048.0,0.1772894]
[1733428852223,0.50571363,99096.0,99060.0,0.0772894]
[1733428852224,0.00525423,99084.0,99060.0,0.0772894]
[1733428852438,0.201864,99077.0,99060.0,0.0772894]
[1733428852654,0.201871,99074.0,99060.0,0.0772894]
[1733428853504,0.15,99073.0,99060.0,0.0772894]
[1733428853720,0.15,99073.0,99049.0,0.09967605]
[1733428853721,0.00525423,99084.0,99068.0,0.0772894]
[1733428853930,0.01577706,99092.0,99069.0,0.1]
[1733428854132,0.008,99074.0,99069.0,0.1]
[1733428854349,0.40890713,99095.0,99069.0,0.1]
[1733428854612,0.003,99074.0,99072.0,0.0772894]
[1733428854831,0.008,99073.0,99072.0,0.1583894]
[1733428855041,0.003,99074.0,99073.0,0.0772894]
[1733428855252,0.003,99074.0,99072.0,0.0811]
[1733428855253,0.201828,99095.0,99072.0,0.1583894]
[1733428855458,0.201844,99087.0,99072.0,0.1583894]
[1733428855678,0.201844,99087.0,99078.0,0.0772894]
[1733428855891,0.20183,99093.0,99078.0,0.0772894]
[1733428856099,0.15,99101.0,99079.0,0.09967605]
[1733428856323,0.15058891,99096.0,99082.0,0.1]
[1733428856526,0.15,99083.0,99075.0,0.0772894]
[1733428856759,0.201889,99064.0,99055.0,0.0827]
[1733428857023,0.15,99063.0,99056.0,0.0772894]
[1733428857463,0.15,99063.0,99062.0,0.1772894]
[1733428857677,0.15,99063.0,99062.0,0.0772894]
[1733428857886,0.15,99074.0,99069.0,0.0772894]
[1733428858097,0.201875,99071.0,99055.0,0.0827]
[1733428858334,0.24967605,99074.0,99064.0,0.0772894]
[1733428858751,0.15,99074.0,99064.0,0.0772894]
[1733428858972,0.351869,99074.0,99064.0,0.0772894]
[1733428859198,0.15,99074.0,99064.0,0.0772894]
[1733428859410,0.15,99074.0,99069.0,0.1]
[1733428859626,0.203851,99083.0,99069.0,0.1]
[1733428859832,0.15,99087.0,99069.0,0.1]
[1733428860034,0.15,99080.0,99069.0,0.1]
[1733428860468,0.15,99080.0,99055.0,0.0827]
[1733428860469,0.002,99074.0,99059.0,0.1]
[1733428860719,0.15,99075.0,99069.0,0.1]
[1733428860948,0.004,99083.0,99069.0,0.1]
[1733428861176,0.004,99083.0,99042.0,0.02049331]
[1733428861177,0.0227106,99067.0,99036.0,0.081226]
[1733428861416,0.201997,99011.0,99003.0,0.0772894]
[1733428861650,0.1,99040.0,98997.0,0.03049185]
[1733428861866,0.201979,99021.0,99005.0,0.0772894]
[1733428862084,0.09967605,99039.0,99009.0,0.0772894]
[1733428862085,0.023,99037.0,99009.0,0.0772894]
[1733428862321,0.15,99041.0,99021.0,0.0772894]
[1733428862530,0.15,99041.0,99022.0,0.09967605]
[1733428862749,0.173,99039.0,98997.0,0.03049185]
[1733428862961,0.173,99032.0,98998.0,0.09967605]
[1733428863188,0.15,98999.0,98997.0,0.00017705]
[1733428863416,0.15,98999.0,98975.0,0.01971994]
[1733428863662,0.15,98999.0,98930.0,0.1008669]
[1733428863663,0.20208,98971.0,98930.0,0.0008669]
[1733428863893,0.09967605,98970.0,98948.0,0.02012993]
[1733428864121,0.15,98969.0,98948.0,0.02012993]
[1733428864351,0.15,98969.0,98931.0,0.09967605]
[1733428864352,0.24967605,98969.0,98941.0,0.0814]
[1733428864849,0.15,98969.0,98942.0,0.09967605]
[1733428865079,0.15,98969.0,98945.0,0.0197058]
[1733428865308,0.50571363,98996.0,98946.0,0.09967605]
[1733428865309,0.023,98994.0,98946.0,0.09967605]
[1733428865548,0.173,98990.0,98945.0,0.1002647]
[1733428865777,0.023,98988.0,98947.0,0.09967605]
[1733428866036,0.023,98986.0,98947.0,0.09967605]
[1733428866245,0.001,98970.0,98947.0,0.09967605]
[1733428866454,0.004,98969.0,98947.0,0.09967605]
[1733428866659,0.004,98969.0,98945.0,0.04758865]
[1733428866875,0.15,98984.0,98945.0,0.04758865]
[1733428866876,0.023,98967.0,98945.0,0.00058865]
[1733428867098,0.15,98964.0,98945.0,0.00058865]
[1733428867357,0.09967605,98955.0,98947.0,0.001]
[1733428867572,0.27267605,98950.0,98947.0,0.001]
[1733428867798,0.173,98948.0,98945.0,0.00058865]
[1733428868011,0.37267605,98946.0,98945.0,0.00058865]
[1733428868439,0.27267605,98946.0,98945.0,0.00058865]
[1733428868652,0.87838968,98946.0,98945.0,0.00058865]
[1733428868893,0.87871363,98931.0,98930.0,0.0008669]
[1733428869109,0.97838968,98931.0,98930.0,0.0008669]
[1733428869328,0.98365255,98931.0,98930.0,0.0008669]
[1733428869543,0.98365255,98931.0,98864.0,0.05]
[1733428869544,0.87784673,98911.0,98864.0,0.05]
[1733428869747,0.97752278,98911.0,98864.0,0.05]
[1733428869991,0.87784673,98901.0,98864.0,0.05]
[1733428870207,0.77752278,98901.0,98864.0,0.05]
[1733428870422,0.15,98901.0,98864.0,0.05]
[1733428870636,0.27267605,98901.0,98864.0,0.05]
[1733428871077,0.2,98922.0,98900.0,0.00104316]
[1733428871078,0.023,98922.0,98900.0,0.00104316]
[1733428871311,0.173,98920.0,98890.0,0.00051398]
[1733428871521,0.173,98900.0,98890.0,8.314e-05]
[1733428871727,0.202236,98894.0,98890.0,0.0002599]
[1733428871936,0.27267605,98893.0,98890.0,0.0002599]
[1733428872159,0.27267605,98891.0,98890.0,0.0002599]
[1733428872379,0.87752278,98891.0,98890.0,0.0002599]
[1733428872609,0.88010973,98881.0,98864.0,0.05]
[1733428872819,0.77752278,98881.0,98864.0,0.05]
[1733428873241,0.15,98881.0,98864.0,0.05]
[1733428873650,0.00017621,98891.0,98864.0,0.05]
[1733428874129,0.009,98881.0,98864.0,0.05]
[1733428874336,0.09967605,98881.0,98864.0,0.05]
[1733428874554,0.15,98889.0,98864.0,0.05]
[1733428874978,0.009,98881.0,98880.0,0.10054275]
[1733428875451,0.009,98881.0,98880.0,0.17854275]
[1733428875665,0.00017621,98891.0,98886.0,0.1]
[1733428875880,0.01580079,98973.0,98921.0,0.202181]
[1733428876111,0.00525381,98963.0,98922.0,0.17767605]
[1733428876326,0.202114,98954.0,98922.0,0.078]
[1733428876538,0.09967605,98936.0,98901.0,0.0765]
[1733428876985,0.09967605,98936.0,98908.0,0.404413]
[1733428877202,0.00958913,98957.0,98918.0,0.202186]
[1733428877427,0.00958913,98957.0,98901.0,0.08415]
[1733428877428,0.00958913,98957.0,98909.0,0.09967605]
[1733428877657,0.202156,98934.0,98901.0,0.0765]
[1733428877875,0.09967605,98933.0,98901.0,0.0765]
[1733428878298,0.10493037,98933.0,98901.0,0.0765]
[1733428878511,0.09967605,98919.0,98901.0,0.0765]
[1733428878730,0.173,98918.0,98901.0,0.0765]
[1733428878962,0.15,98909.0,98901.0,0.0765]
[1733428879602,0.15,98907.0,98901.0,0.0765]
[1733428879809,0.15,98905.0,98881.0,0.0802]
[1733428880045,0.15,98905.0,98882.0,0.09967605]
[1733428880280,0.15,98905.0,98883.0,0.09967605]
[1733428880705,0.15,98905.0,98881.0,0.0802]
[1733428880930,0.023,98908.0,98881.0,0.0802]
[1733428881146,0.09967605,98904.0,98881.0,0.0802]
[1733428881356,0.023,98901.0,98881.0,0.0802]
[1733428881607,0.15,98902.0,98881.0,0.0802]
[1733428882521,0.023,98908.0,98881.0,0.0802]
[1733428882748,0.009,98902.0,98882.0,0.09967605]
[1733428882977,0.009,98902.0,98884.0,0.09967605]
[1733428883225,0.009,98902.0,98881.0,0.0802]
[1733428883460,0.09967605,98901.0,98881.0,0.0802]
[1733428883683,0.004,98902.0,98881.0,0.2802]
[1733428884181,0.009,98908.0,98881.0,0.2802]
[1733428884413,0.15,98899.0,98881.0,0.2802]
[1733428885346,0.126,98899.0,98882.0,0.09967605]
[1733428885553,0.126,98899.0,98881.0,0.2802]
[1733428885826,0.126,98899.0,98882.0,0.09967605]
[1733428886065,0.126,98899.0,98881.0,0.2802]
[1733428886318,0.126,98899.0,98883.0,0.09967605]
[1733428886542,0.135,98899.0,98883.0,0.09967605]
[1733428886807,0.70699073,98939.0,98883.0,0.09967605]
[1733428887037,0.09967605,98934.0,98883.0,0.09967605]
[1733428887266,0.001,98899.0,98883.0,0.09967605]
[1733428887751,0.001,98899.0,98881.0,0.2802]
[1733428888055,0.202098,98962.0,98891.0,0.0458]
[1733428888255,0.202079,98971.0,98903.0,0.0778]
[1733428888487,0.202079,98971.0,98903.0,0.17747605]
[1733428888711,0.202099,98962.0,98903.0,0.17747605]
[1733428888938,0.20209,98966.0,98904.0,0.023]
[1733428889171,0.50484673,98994.0,98921.0,0.22387605]
[1733428889438,0.20204,98990.0,98929.0,0.023]
[1733428889661,0.1,98983.0,98923.0,0.023]
[1733428889913,0.1,98983.0,98924.0,0.023]
[1733428890143,0.009,98935.0,98924.0,0.12267605]
[1733428890397,0.00232353,98950.0,98933.0,0.202155]
[1733428890643,0.00232353,98950.0,98946.0,0.0803]
[1733428890877,0.01579436,99000.0,98949.0,0.09967605]
[1733428891102,0.1,98975.0,98923.0,0.079]
[1733428891362,0.02187864,98986.0,98923.0,0.079]
[1733428891363,0.202103,98959.0,98923.0,0.079]
[1733428891605,0.202168,98928.0,98923.0,0.002]
[1733428891844,0.404336,98928.0,98923.0,0.002]
[1733428892070,0.1063,98918.0,98881.0,0.2]
[1733428892301,0.15,98883.0,98881.0,0.2]
[1733428892550,0.0999,98868.0,98817.0,0.0001]
[1733428892795,0.09967605,98857.0,98825.0,0.0001]
[1733428893019,0.09967605,98853.0,98823.0,0.0001]
[1733428893472,0.00525791,98852.0,98817.0,0.0001]
[1733428893688,0.202335,98846.0,98824.0,0.0001]
[1733428893920,0.182339,98844.0,98819.0,0.0001]
[1733428894158,0.182339,98844.0,98840.0,0.00245713]
[1733428894159,0.202343,98842.0,98840.0,0.00245713]
[1733428894385,0.182339,98844.0,98840.0,0.00245713]
[1733428894386,0.24967605,98841.0,98840.0,0.00245713]
[1733428894630,0.15,98841.0,98840.0,0.00245713]
[1733428894902,0.15,98841.0,98840.0,0.00145713]
[1733428895175,0.24967605,98841.0,98840.0,0.00245713]
[1733428895450,0.45202105,98841.0,98840.0,0.00145713]
[1733428895670,0.46102105,98841.0,98840.0,0.00245713]
[1733428895885,0.45202105,98841.0,98840.0,0.00145713]
[1733428896099,0.24967605,98841.0,98840.0,0.00145713]
[1733428896321,0.009,98841.0,98840.0,0.00255713]
[1733428896752,0.009,98841.0,98840.0,0.00245713]
[1733428896963,0.10867605,98841.0,98840.0,0.00245713]
[1733428897188,0.202347,98840.0,98795.0,0.0805]
[1733428897415,0.46557605,98841.0,98800.0,0.05145583]
[1733428897416,0.202426,98802.0,98800.0,0.05145583]
[1733428897625,0.50484673,98836.0,98784.0,0.0001]
[1733428897626,0.15,98794.0,98784.0,0.0001]
[1733428897848,0.15,98792.0,98784.0,0.0001]
[1733428898295,0.15,98792.0,98776.0,0.0763]
[1733428898516,0.202447,98791.0,98776.0,0.0763]
[1733428898733,0.202447,98791.0,98740.0,0.1008673]
[1733428898734,0.15,98788.0,98740.0,0.1008673]
[1733428898949,0.15,98785.0,98754.0,0.0778]
[1733428899175,0.15,98785.0,98775.0,0.0001]
[1733428899627,0.15,98785.0,98784.0,0.0001]
[1733428900287,0.00058803,98802.0,98755.0,0.1]
[1733428900288,0.00058803,98802.0,98787.0,0.0001]
[1733428900502,0.00058803,98802.0,98794.0,0.0001]
[1733428900713,0.00058803,98802.0,98795.0,0.0001]
[1733428900980,0.00058803,98802.0,98798.0,0.0001]
[1733428901621,0.00058803,98802.0,98801.0,0.0001]
[1733428901845,0.15,98801.0,98779.0,0.0826]
[1733428902065,0.15,98798.0,98782.0,0.0001]
[1733428902306,0.15,98789.0,98782.0,0.0001]
[1733428902522,0.352468,98781.0,98780.0,0.0008663]
[1733428902742,0.15,98781.0,98780.0,0.0008663]
[1733428903461,0.15,98781.0,98780.0,0.10064235]
[1733428903676,0.00958803,98802.0,98780.0,0.10064235]
[1733428903677,0.00958803,98802.0,98801.0,0.0001]
[1733428903892,0.01858803,98802.0,98801.0,0.0001]
[1733428904850,0.00058803,98802.0,98801.0,0.0001]
[1733428905034,0.00058803,98802.0,98801.0,0.16837605]
[1733428905467,0.20227,98878.0,98838.0,0.0001]